fUSD/lending_fUSD_20260630
["ID","MTS","AMOUNT","RATE_DAILY","PERIOD"]
[426701648,1782751840000,-144.71524803,0.00029,2]
[426701642,1782751840000,-1000.0,0.00029,2]
[426701644,1782751840000,-239.21,0.00029,7]
[426701636,1782751840000,-387.9223472,0.00028973,2]
[426701621,1782751840000,-160.0,0.00028769,30]
[426701640,1782751840000,-10280.87808274,0.00029,2]
[426701629,1782751840000,-665.0,0.00028863,7]
[426701631,1782751840000,-413.25155194,0.00028973,2]
[426701625,1782751840000,-1103.78662963,0.00028805,2]
[426701627,1782751840000,-151.83365069,0.0002885,2]
[426701638,1782751840000,-70.52512609,0.00029,2]
[426701634,1782751840000,-574.81083747,0.00028973,2]
[426701646,1782751840000,-855.28475197,0.00029,2]
[426701835,1782751841000,-262.85812692,0.00021299,2]
[426701837,1782751841000,-3597.17,0.00027397,10]
[426701838,1782751841000,-200.35,0.0002755,2]
[426701840,1782751841000,-200.35,0.0002758,7]
[426701842,1782751841000,-200.35,0.00027611,30]
[426701846,1782751841000,-200.35,0.00027672,7]
[426701848,1782751841000,-200.35,0.00027702,30]
[426701844,1782751841000,-200.35,0.00027641,2]
[426701832,1782751841000,-151.0,0.00021299,2]
[426701831,1782751841000,-151.0,0.00021299,2]
[426701850,1782751841000,-200.35,0.00027733,2]
[426701856,1782751841000,-200.35,0.00027824,2]
[426701854,1782751841000,-200.35,0.00027794,30]
[426701860,1782751841000,-200.35,0.00027885,30]
[426701852,1782751841000,-200.35,0.00027763,7]
[426701829,1782751841000,-893.39,0.00020986,2]
[426701858,1782751841000,-200.35,0.00027855,7]
[426701923,1782751842000,-10351.40320883,0.000293,2]
[426701925,1782751842000,-3334.20995326,0.00029306,7]
[426701927,1782751842000,-1831.98,0.00029315,2]
[426701929,1782751842000,-500.0,0.00029364,18]
[426701936,1782751842000,-166.66,0.00029424,2]
[426701931,1782751842000,-59704.0,0.000294,2]
[426701933,1782751842000,-150.0,0.00029422,2]
[426701935,1782751842000,-258.42172523,0.00029424,2]
[426701940,1782751842000,-408.37682636,0.00029473,2]
[426701937,1782751842000,-151.83365069,0.00029448,2]
[426701942,1782751842000,-1831.98,0.00029479,2]
[426701944,1782751842000,-10351.40320883,0.000296,2]
[426701938,1782751842000,-154.96128957,0.00029462,10]
[426701948,1782751842000,-1831.98,0.00029644,2]
[426701950,1782751842000,-500.0,0.00029735,6]
[426701952,1782751842000,-151.83365069,0.00029746,2]
[426701954,1782751842000,-154.0,0.00029768,30]
[426701956,1782751842000,-684.0,0.00029768,30]
[426701958,1782751842000,-192.0,0.00029768,30]
[426701968,1782751842000,-1831.98,0.00029808,2]
[426701970,1782751842000,-10351.40320883,0.000299,2]
[426701960,1782751842000,-221.0,0.00029768,30]
[426701964,1782751842000,-160.0,0.00029769,30]
[426701974,1782751842000,-1853.01,0.000299,7]
[426701962,1782751842000,-792.0,0.00029768,30]
[426701946,1782751842000,-150.0,0.00029601,2]
[426701915,1782751842000,-1078.9373616,0.00029256,2]
[426701886,1782751842000,-446.03066251,0.00029028,7]
[426701921,1782751842000,-200.0,0.00029266,2]
[426701869,1782751842000,-200.35,0.00028007,2]
[426701871,1782751842000,-5466.12497479,0.00029,2]
[426701865,1782751842000,-200.35,0.00027946,7]
[426701863,1782751842000,-200.35,0.00027916,2]
[426701867,1782751842000,-200.35,0.00027977,30]
[426701875,1782751842000,-291.3119351,0.00029,2]
[426701873,1782751842000,-665.0,0.00029,7]
[426701881,1782751842000,-160.0,0.00029,30]
[426701879,1782751842000,-160.0,0.00029,30]
[426701877,1782751842000,-167.33383345,0.00029,2]
[426701890,1782751842000,-1594.64,0.000291,7]
[426701892,1782751842000,-1853.01,0.000291,7]
[426701896,1782751842000,-151.83365069,0.00029149,2]
[426701884,1782751842000,-163.045516,0.00029,2]
[426701888,1782751842000,-500.0,0.00029074,5]
[426701894,1782751842000,-206.36564284,0.00029133,10]
[426701898,1782751842000,-494.61813974,0.00029204,2]
[426701900,1782751842000,-237.18007815,0.00029211,3]
[426701902,1782751842000,-1103.53532012,0.00029246,2]
[426701904,1782751842000,-1074.79338687,0.00029246,2]
[426701907,1782751842000,-1139.97293153,0.00029246,2]
[426701909,1782751842000,-1101.9778151,0.00029246,2]
[426701911,1782751842000,-243.94727251,0.00029251,2]
[426701917,1782751842000,-1234.32915428,0.00029256,2]
[426701919,1782751842000,-1113.12085881,0.00029256,2]
[426701966,1782751842000,-475.0,0.00029769,30]
[426701972,1782751842000,-1594.64,0.000299,7]
[426701913,1782751842000,-1348.09325534,0.00029251,2]
[426701978,1782751842000,-237.28041874,0.000299,2]
[426702041,1782751842000,-17605.66460439,0.0003,2]
[426702058,1782751842000,-14999.97,0.0003,2]
[426702063,1782751842000,-647.18,0.0003,2]
[426702061,1782751842000,-200.14986379,0.0003,2]
[426702065,1782751842000,-2191.37,0.0003,2]
[426702054,1782751842000,-200.35,0.00028038,7]
[426702056,1782751842000,-4894.19539561,0.0003,2]
[426702060,1782751842000,-800.0,0.0003,2]
[426702070,1782751842000,-24999.99,0.0003,2]
[426702068,1782751842000,-749.87,0.0003,2]
[426702072,1782751842000,-12499.99,0.0003,2]
[426702080,1782751842000,-8509.75,0.0003,2]
[426702039,1782751842000,-12499.86,0.0003,2]
[426702086,1782751842000,-3652.04,0.0003,2]
[426702074,1782751842000,-25000.0,0.0003,2]
[426702083,1782751842000,-6697.85,0.0003,2]
[426702082,1782751842000,-12500.0,0.0003,2]
[426702087,1782751842000,-4655.19,0.0003,2]
[426702084,1782751842000,-2895.42,0.0003,2]
[426702089,1782751842000,-4910.16,0.0003,2]
[426702092,1782751842000,-15000.0,0.0003,2]
[426702097,1782751842000,-25000.0,0.0003,2]
[426702094,1782751842000,-12500.0,0.0003,2]
[426702091,1782751842000,-24999.99,0.0003,2]
[426702095,1782751842000,-12397.68,0.0003,2]
[426701976,1782751842000,-266.86870109,0.000299,2]
[426702076,1782751842000,-12500.0,0.0003,2]
[426702037,1782751842000,-9999.84,0.0003,2]
[426702078,1782751842000,-12499.99,0.0003,2]
[426702033,1782751842000,-733.82,0.00029999,120]
[426701980,1782751842000,-237.28041874,0.000299,2]
[426702035,1782751842000,-14351.58,0.0003,2]
[426701982,1782751842000,-237.28041874,0.000299,2]
[426701986,1782751842000,-237.28041874,0.000299,2]
[426701984,1782751842000,-237.28041874,0.000299,2]
[426701999,1782751842000,-237.28041874,0.000299,2]
[426701996,1782751842000,-237.28041874,0.000299,2]
[426701988,1782751842000,-237.28041874,0.000299,2]
[426701990,1782751842000,-237.28041874,0.000299,2]
[426702001,1782751842000,-237.28041874,0.000299,2]
[426701995,1782751842000,-237.28041874,0.000299,2]
[426702005,1782751842000,-237.28041874,0.000299,2]
[426702009,1782751842000,-237.28041874,0.000299,2]
[426701992,1782751842000,-237.28041874,0.000299,2]
[426702011,1782751842000,-237.28041874,0.000299,2]
[426702031,1782751842000,-869.61,0.00029999,120]
[426702003,1782751842000,-237.28041874,0.000299,2]
[426702029,1782751842000,-1211.21,0.00029999,120]
[426702024,1782751842000,-2183.99,0.00029999,7]
[426702019,1782751842000,-1831.98,0.00029973,2]
[426702020,1782751842000,-160.19951265,0.00029973,2]
[426702027,1782751842000,-809.62,0.00029999,120]
[426702016,1782751842000,-237.28041874,0.000299,2]
[426702022,1782751842000,-303.0,0.00029973,7]
[426702013,1782751842000,-237.28041874,0.000299,2]
[426702007,1782751842000,-237.28041874,0.000299,2]
[426702015,1782751842000,-237.28041874,0.000299,2]
[426702171,1782751843000,-1000.13,0.00030136,2]
[426702173,1782751843000,-1000.13,0.00030136,2]
[426702167,1782751843000,-1000.13,0.00030136,2]
[426702169,1782751843000,-1000.13,0.00030136,2]
[426702166,1782751843000,-1000.13,0.00030136,2]
[426702158,1782751843000,-1000.13,0.00030136,2]
[426702161,1782751843000,-1000.13,0.00030136,2]
[426702160,1782751843000,-1000.13,0.00030136,2]
[426702157,1782751843000,-1000.13,0.00030136,2]
[426702163,1782751843000,-1000.13,0.00030136,2]
[426702164,1782751843000,-1000.13,0.00030136,2]
[426702177,1782751843000,-1000.13,0.00030136,2]
[426702190,1782751843000,-500.0,0.00030136,2]
[426702181,1782751843000,-500.0,0.00030136,2]
[426702183,1782751843000,-502.7070817,0.00030136,2]
[426702186,1782751843000,-500.0,0.00030136,2]
[426702185,1782751843000,-402.18706998,0.00030136,2]
[426702194,1782751843000,-500.0,0.00030136,2]
[426702198,1782751843000,-500.0,0.00030136,2]
[426702204,1782751843000,-500.0,0.00030136,2]
[426702200,1782751843000,-500.0,0.00030136,2]
[426702196,1782751843000,-500.0,0.00030136,2]
[426702188,1782751843000,-500.0,0.00030136,2]
[426702192,1782751843000,-500.0,0.00030136,2]
[426702156,1782751843000,-1000.13,0.00030136,2]
[426702179,1782751843000,-1000.19777974,0.00030136,2]
[426702154,1782751843000,-1000.13,0.00030136,2]
[426702100,1782751843000,-1616.17,0.0003,2]
[426702145,1782751843000,-1000.13,0.00030136,2]
[426702202,1782751843000,-500.0,0.00030136,2]
[426702098,1782751843000,-2499.99,0.0003,2]
[426702103,1782751843000,-22499.99,0.0003,2]
[426702104,1782751843000,-2499.99,0.0003,2]
[426702108,1782751843000,-2500.0,0.0003,2]
[426702101,1782751843000,-2499.99,0.0003,2]
[426702109,1782751843000,-22500.0,0.0003,2]
[426702111,1782751843000,-3515.952415,0.0003,30]
[426702123,1782751843000,-5528.0,0.000301,3]
[426702127,1782751843000,-12500.0,0.00030125,2]
[426702126,1782751843000,-12500.0,0.00030125,2]
[426702122,1782751843000,-1000.0,0.000301,120]
[426702143,1782751843000,-1000.13,0.00030136,2]
[426702129,1782751843000,-2000.0,0.00030136,7]
[426702112,1782751843000,-216.58458871,0.0003,30]
[426702120,1782751843000,-151.83365069,0.00030045,2]
[426702119,1782751843000,-250.0,0.00030032,7]
[426702117,1782751843000,-250.0,0.00030032,7]
[426702116,1782751843000,-250.0,0.00030032,7]
[426702114,1782751843000,-446.03066251,0.00030028,7]
[426702138,1782751843000,-1000.13,0.00030136,2]
[426702136,1782751843000,-1000.13,0.00030136,2]
[426702149,1782751843000,-1000.13,0.00030136,2]
[426702151,1782751843000,-1000.13,0.00030136,2]
[426702141,1782751843000,-1000.13,0.00030136,2]
[426702153,1782751843000,-1000.13,0.00030136,2]
[426702133,1782751843000,-1000.13,0.00030136,2]
[426702206,1782751843000,-500.0,0.00030136,2]
[426702106,1782751843000,-22499.99,0.0003,2]
[426702216,1782751843000,-500.0,0.00030136,2]
[426702306,1782751843000,-152.5325826,0.00030137,2]
[426702296,1782751843000,-247.53,0.00030137,2]
[426702290,1782751843000,-500.0,0.00030136,15]
[426702300,1782751843000,-316.12606361,0.00030137,2]
[426702298,1782751843000,-158.0630318,0.00030137,2]
[426702304,1782751843000,-436.96599853,0.00030137,2]
[426702284,1782751843000,-500.0,0.00030136,15]
[426702292,1782751843000,-500.0,0.00030136,15]
[426702302,1782751843000,-218.48299926,0.00030137,2]
[426702286,1782751843000,-500.0,0.00030136,15]
[426702288,1782751843000,-500.0,0.00030136,15]
[426702283,1782751843000,-500.0,0.00030136,15]
[426702281,1782751843000,-500.0,0.00030136,15]
[426702294,1782751843000,-574.24997663,0.00030136,15]
[426702328,1782751843000,-305.11921922,0.0003036,2]
[426702326,1782751843000,-224.0,0.00030345,2]
[426702324,1782751843000,-151.83365069,0.00030344,2]
[426702308,1782751843000,-1000.0,0.00030137,30]
[426702322,1782751843000,-12500.0,0.0003025,2]
[426702311,1782751843000,-1831.97928048,0.00030137,2]
[426702330,1782751843000,-251.0,0.0003036,2]
[426702313,1782751843000,-851.0,0.0003016,2]
[426702317,1782751843000,-152.5325826,0.0003018,5]
[426702332,1782751843000,-251.0,0.0003036,2]
[426702336,1782751843000,-166.66,0.00030364,2]
[426702334,1782751843000,-251.0,0.0003036,2]
[426702319,1782751843000,-10351.40320883,0.000302,2]
[426702279,1782751843000,-500.0,0.00030136,15]
[426702315,1782751843000,-275.0,0.0003016,2]
[426702276,1782751843000,-500.0,0.00030136,15]
[426702260,1782751843000,-300.0,0.00030136,2]
[426702221,1782751843000,-500.0,0.00030136,2]
[426702223,1782751843000,-500.0,0.00030136,2]
[426702220,1782751843000,-500.0,0.00030136,2]
[426702225,1782751843000,-500.0,0.00030136,2]
[426702218,1782751843000,-500.0,0.00030136,2]
[426702229,1782751843000,-500.0,0.00030136,2]
[426702230,1782751843000,-500.0,0.00030136,2]
[426702246,1782751843000,-300.0,0.00030136,2]
[426702234,1782751843000,-500.0,0.00030136,2]
[426702227,1782751843000,-500.0,0.00030136,2]
[426702238,1782751843000,-526.60827864,0.00030136,2]
[426702232,1782751843000,-500.0,0.00030136,2]
[426702208,1782751843000,-500.0,0.00030136,2]
[426702240,1782751843000,-300.0,0.00030136,2]
[426702236,1782751843000,-500.0,0.00030136,2]
[426702256,1782751843000,-300.0,0.00030136,2]
[426702258,1782751843000,-300.0,0.00030136,2]
[426702269,1782751843000,-300.0,0.00030136,2]
[426702266,1782751843000,-300.0,0.00030136,2]
[426702254,1782751843000,-300.0,0.00030136,2]
[426702252,1782751843000,-300.0,0.00030136,2]
[426702263,1782751843000,-300.0,0.00030136,2]
[426702244,1782751843000,-300.0,0.00030136,2]
[426702248,1782751843000,-300.0,0.00030136,2]
[426702250,1782751843000,-300.0,0.00030136,2]
[426702242,1782751843000,-300.0,0.00030136,2]
[426702272,1782751843000,-185.67251033,0.00030136,2]
[426702414,1782751844000,-800.0,0.00031,2]
[426702397,1782751844000,-192.0,0.00030768,30]
[426702407,1782751844000,-10351.40320883,0.000308,2]
[426702401,1782751844000,-792.0,0.00030768,30]
[426702405,1782751844000,-475.0,0.00030769,30]
[426702403,1782751844000,-160.0,0.00030769,30]
[426702408,1782751844000,-5528.0,0.000308,5]
[426702412,1782751844000,-151.83365069,0.00030941,2]
[426702410,1782751844000,-12500.0,0.00030875,2]
[426702399,1782751844000,-221.0,0.00030768,30]
[426702422,1782751844000,-2000.0,0.00031,120]
[426702419,1782751844000,-1000.0,0.00031,7]
[426702430,1782751844000,-251.0,0.0003102,2]
[426702424,1782751844000,-216.58458871,0.00031,7]
[426702427,1782751844000,-251.0,0.0003102,2]
[426702394,1782751844000,-684.0,0.00030768,30]
[426702420,1782751844000,-12500.0,0.00031,2]
[426702429,1782751844000,-251.0,0.0003102,2]
[426702433,1782751844000,-251.0,0.0003102,2]
[426702435,1782751844000,-251.0,0.0003102,2]
[426702446,1782751844000,-150.0,0.00031081,2]
[426702445,1782751844000,-599.17,0.0003108,2]
[426702441,1782751844000,-500.0,0.00031058,7]
[426702416,1782751844000,-554.69,0.00031,7]
[426702390,1782751844000,-12500.0,0.0003075,2]
[426702360,1782751844000,-1303.5062703,0.00030603,2]
[426702388,1782751844000,-1853.01,0.000307,7]
[426702443,1782751844000,-5362.6346258,0.00031069,28]
[426702340,1782751844000,-500.0,0.00030397,6]
[426702338,1782751844000,-12500.0,0.00030375,2]
[426702342,1782751844000,-153.93,0.00030411,120]
[426702354,1782751844000,-12500.0,0.000305,2]
[426702346,1782751844000,-152.5325826,0.00030477,7]
[426702348,1782751844000,-10351.40320883,0.000305,2]
[426702350,1782751844000,-800.0,0.000305,2]
[426702344,1782751844000,-150.0,0.00030422,2]
[426702352,1782751844000,-2339.34707114,0.000305,2]
[426702356,1782751844000,-215.39,0.00030588,120]
[426702393,1782751844000,-154.0,0.00030768,30]
[426702368,1782751844000,-30591.62033188,0.00030667,2]
[426702374,1782751844000,-251.0,0.0003069,2]
[426702372,1782751844000,-251.0,0.0003069,2]
[426702376,1782751844000,-251.0,0.0003069,2]
[426702378,1782751844000,-251.0,0.0003069,2]
[426702362,1782751844000,-12500.0,0.00030625,2]
[426702366,1782751844000,-5482.49553364,0.00030658,2]
[426702382,1782751844000,-251.0,0.0003069,2]
[426702364,1782751844000,-151.83365069,0.00030643,2]
[426702380,1782751844000,-251.0,0.0003069,2]
[426702384,1782751844000,-251.0,0.0003069,2]
[426702386,1782751844000,-1594.64,0.000307,7]
[426702358,1782751844000,-566.4542782,0.00030599,2]
[426702370,1782751844000,-251.0,0.0003069,2]
[426702456,1782751844000,-1239.11251145,0.00031146,2]
[426702458,1782751844000,-1259.40321726,0.00031146,2]
[426702519,1782751844000,-1510.961416,0.00031507,7]
[426702526,1782751844000,-215.39,0.00031575,120]
[426702524,1782751844000,-151.83365069,0.00031539,2]
[426702528,1782751844000,-152.0,0.00031602,5]
[426702530,1782751844000,-247.54223219,0.000317,2]
[426702534,1782751844000,-164.0,0.00031768,30]
[426702532,1782751844000,-500.0,0.0003172,8]
[426702537,1782751844000,-684.0,0.00031768,30]
[426702539,1782751844000,-192.0,0.00031768,30]
[426702541,1782751844000,-221.0,0.00031768,30]
[426702543,1782751844000,-792.0,0.00031768,30]
[426702521,1782751844000,-1000.0,0.00031507,40]
[426702558,1782751844000,-12094.702,0.00032,2]
[426702554,1782751844000,-1500.0,0.00031872,2]
[426702550,1782751844000,-151.83365069,0.00031838,2]
[426702563,1782751844000,-3304.38,0.00032,7]
[426702561,1782751844000,-800.0,0.00032,5]
[426702565,1782751844000,-160.0,0.00032,10]
[426702567,1782751844000,-160.0,0.00032,10]
[426702547,1782751844000,-475.0,0.00031769,30]
[426702552,1782751844000,-1500.0,0.00031872,2]
[426702569,1782751844000,-150.0,0.00032055,30]
[426702571,1782751844000,-150.0,0.00032055,30]
[426702439,1782751844000,-251.0,0.0003102,2]
[426702545,1782751844000,-160.0,0.00031769,30]
[426702514,1782751844000,-1594.64,0.000315,7]
[426702556,1782751844000,-334.31,0.00031902,3]
[426702517,1782751844000,-554.69,0.000315,7]
[426702510,1782751844000,-150.0,0.00031422,2]
[426702454,1782751844000,-1280.30300948,0.00031146,2]
[426702437,1782751844000,-251.0,0.0003102,2]
[426702448,1782751844000,-3304.38,0.000311,7]
[426702460,1782751844000,-1389.14031577,0.00031146,2]
[426702452,1782751844000,-11641.43,0.00031125,2]
[426702462,1782751844000,-1233.07127041,0.00031157,2]
[426702486,1782751844000,-550.25587742,0.0003128,2]
[426702488,1782751844000,-206.36564284,0.00031286,10]
[426702492,1782751844000,-206.36564284,0.00031286,10]
[426702490,1782751844000,-206.36564284,0.00031286,10]
[426702494,1782751844000,-152.5325826,0.00031286,10]
[426702450,1782751844000,-2000.0,0.00031122,7]
[426702516,1782751844000,-1853.01,0.000315,7]
[426702477,1782751844000,-1410.66189061,0.00031157,2]
[426702500,1782751844000,-251.0,0.0003135,2]
[426702512,1782751844000,-800.0,0.000315,2]
[426702507,1782751844000,-251.0,0.0003135,2]
[426702505,1782751844000,-251.0,0.0003135,2]
[426702502,1782751844000,-251.0,0.0003135,2]
[426702498,1782751844000,-251.0,0.0003135,2]
[426702483,1782751844000,-151.83365069,0.0003124,2]
[426702481,1782751844000,-418.0,0.00031228,7]
[426702479,1782751844000,-1272.13812435,0.00031157,2]
[426702496,1782751844000,-166.66,0.00031305,2]
[426702648,1782751845000,-809.62,0.00032876,120]
[426702660,1782751845000,-3000.0,0.00032876,2]
[426702662,1782751845000,-3000.0,0.00032876,2]
[426702650,1782751845000,-1211.21,0.00032876,120]
[426702646,1782751845000,-2183.99,0.00032876,7]
[426702632,1782751845000,-684.0,0.00032768,30]
[426702641,1782751845000,-152.5325826,0.00032861,12]
[426702637,1782751845000,-160.59292995,0.00032769,30]
[426702635,1782751845000,-792.0,0.00032768,30]
[426702664,1782751845000,-3000.0,0.00032876,2]
[426702620,1782751845000,-800.0,0.000325,5]
[426702643,1782751845000,-500.0,0.00032876,14]
[426702652,1782751845000,-869.61,0.00032876,120]
[426702676,1782751845000,-1000.0,0.00032877,10]
[426702666,1782751845000,-2066.7244798,0.00032876,2]
[426702658,1782751845000,-3000.0,0.00032876,2]
[426702654,1782751845000,-733.82,0.00032876,120]
[426702670,1782751845000,-1000.0,0.00032877,10]
[426702672,1782751845000,-1000.0,0.00032877,10]
[426702674,1782751845000,-1000.0,0.00032877,10]
[426702668,1782751845000,-1000.0,0.00032877,10]
[426702683,1782751845000,-1000.0,0.00032877,10]
[426702680,1782751845000,-1000.0,0.00032877,10]
[426702678,1782751845000,-1000.0,0.00032877,10]
[426702688,1782751845000,-1000.0,0.00032877,10]
[426702656,1782751845000,-3000.0,0.00032876,2]
[426702631,1782751845000,-151.83365069,0.00032734,2]
[426702573,1782751845000,-150.0,0.00032055,30]
[426702628,1782751845000,-150.0,0.00032636,2]
[426702686,1782751845000,-1000.0,0.00032877,10]
[426702578,1782751845000,-150.0,0.00032055,30]
[426702576,1782751845000,-150.0,0.00032055,30]
[426702582,1782751845000,-150.0,0.00032055,30]
[426702589,1782751845000,-150.0,0.00032055,30]
[426702591,1782751845000,-2000.0,0.00032109,7]
[426702580,1782751845000,-151.22945691,0.00032055,30]
[426702587,1782751845000,-150.0,0.00032055,30]
[426702585,1782751845000,-150.0,0.00032055,30]
[426702593,1782751845000,-151.83365069,0.00032136,2]
[426702595,1782751845000,-370.82,0.00032232,7]
[426702597,1782751845000,-516.24,0.00032232,7]
[426702600,1782751845000,-9912.37,0.00032232,7]
[426702605,1782751845000,-57904.97,0.00032232,7]
[426702616,1782751845000,-500.0,0.00032381,9]
[426702602,1782751845000,-3062.93,0.00032232,7]
[426702609,1782751845000,-206.36564284,0.00032259,10]
[426702607,1782751845000,-166.66,0.00032245,2]
[426702618,1782751845000,-151.83365069,0.00032435,2]
[426702614,1782751845000,-1853.01,0.000323,7]
[426702626,1782751845000,-215.39,0.00032561,120]
[426702622,1782751845000,-1000.0,0.000325,120]
[426702624,1782751845000,-578.0,0.00032537,7]
[426702639,1782751845000,-475.0,0.00032769,30]
[426702633,1782751845000,-192.0,0.00032768,30]
[426702634,1782751845000,-221.0,0.00032768,30]
[426702690,1782751845000,-1000.0,0.00032877,10]
[426702611,1782751845000,-1594.64,0.000323,7]
[426702702,1782751845000,-1000.0,0.00032877,10]
[426702756,1782751845000,-462.6,0.00032896,3]
[426702766,1782751845000,-500.0,0.00033,20]
[426702764,1782751845000,-500.0,0.00033,20]
[426702762,1782751845000,-500.0,0.00033,20]
[426702768,1782751845000,-500.0,0.00033,20]
[426702811,1782751845000,-500.0,0.00033,20]
[426702784,1782751845000,-500.0,0.00033,20]
[426702779,1782751845000,-500.0,0.00033,20]
[426702781,1782751845000,-500.0,0.00033,20]
[426702786,1782751845000,-500.0,0.00033,20]
[426702775,1782751845000,-500.0,0.00033,20]
[426702773,1782751845000,-500.0,0.00033,20]
[426702754,1782751845000,-2000.0,0.00032877,50]
[426702788,1782751845000,-500.0,0.00033,20]
[426702770,1782751845000,-500.0,0.00033,20]
[426702777,1782751845000,-500.0,0.00033,20]
[426702792,1782751845000,-500.0,0.00033,20]
[426702796,1782751845000,-500.0,0.00033,20]
[426702794,1782751845000,-500.0,0.00033,20]
[426702801,1782751845000,-500.0,0.00033,20]
[426702805,1782751845000,-500.0,0.00033,20]
[426702803,1782751845000,-500.0,0.00033,20]
[426702799,1782751845000,-500.0,0.00033,20]
[426702813,1782751845000,-500.0,0.00033,20]
[426702807,1782751845000,-500.0,0.00033,20]
[426702809,1782751845000,-500.0,0.00033,20]
[426702790,1782751845000,-500.0,0.00033,20]
[426702760,1782751845000,-553.0,0.00032945,3]
[426702692,1782751845000,-1000.0,0.00032877,10]
[426702752,1782751845000,-500.0,0.00032877,2]
[426702705,1782751845000,-1000.0,0.00032877,10]
[426702696,1782751845000,-1000.0,0.00032877,10]
[426702707,1782751845000,-1000.0,0.00032877,10]
[426702694,1782751845000,-1000.0,0.00032877,10]
[426702709,1782751845000,-1000.0,0.00032877,10]
[426702698,1782751845000,-1000.0,0.00032877,10]
[426702700,1782751845000,-1000.0,0.00032877,10]
[426702758,1782751845000,-178.0,0.00032916,3]
[426702711,1782751845000,-1000.0,0.00032877,10]
[426702715,1782751845000,-1000.0,0.00032877,10]
[426702720,1782751845000,-1000.0,0.00032877,10]
[426702722,1782751845000,-1000.0,0.00032877,10]
[426702726,1782751845000,-1000.0,0.00032877,10]
[426702713,1782751845000,-1000.0,0.00032877,10]
[426702724,1782751845000,-1000.0,0.00032877,10]
[426702737,1782751845000,-1000.0,0.00032877,10]
[426702745,1782751845000,-455.0,0.00032877,10]
[426702747,1782751845000,-247.53,0.00032877,2]
[426702743,1782751845000,-1000.0,0.00032877,10]
[426702740,1782751845000,-1000.0,0.00032877,10]
[426702749,1782751845000,-500.0,0.00032877,2]
[426702733,1782751845000,-1000.0,0.00032877,10]
[426702728,1782751845000,-1000.0,0.00032877,10]
[426702739,1782751845000,-1000.0,0.00032877,10]
[426702735,1782751845000,-1000.0,0.00032877,10]
[426702718,1782751845000,-1000.0,0.00032877,10]
[426702730,1782751845000,-1000.0,0.00032877,10]
[426702902,1782751846000,-500.0,0.00033,20]
[426702905,1782751846000,-500.0,0.00033,20]
[426702913,1782751846000,-216.58458871,0.00033,7]
[426702900,1782751846000,-500.0,0.00033,20]
[426702898,1782751846000,-500.0,0.00033,20]
[426702886,1782751846000,-500.0,0.00033,20]
[426702883,1782751846000,-500.0,0.00033,20]
[426702888,1782751846000,-500.0,0.00033,20]
[426702881,1782751846000,-500.0,0.00033,20]
[426702879,1782751846000,-800.0,0.00033,5]
[426702892,1782751846000,-500.0,0.00033,20]
[426702894,1782751846000,-500.0,0.00033,20]
[426702927,1782751846000,-200.0,0.00033098,10]
[426702910,1782751846000,-500.0,0.00033,20]
[426702907,1782751846000,-500.0,0.00033,20]